fUSD/lending_fUSD_20241123
["ID","MTS","AMOUNT","RATE_DAILY","PERIOD"]
[343162905,1732389103024,-563.31,0.00055986,120]
[343162906,1732389103035,-563.31,0.00055986,120]
[343162907,1732389103045,-563.31,0.00055986,120]
[343162908,1732389103055,-563.31,0.00055986,120]
[343162909,1732389103066,-563.31,0.00055986,120]
[343162910,1732389103076,-563.45,0.00055986,120]
[343162911,1732389103087,-500.0,0.00055986,120]
[343162912,1732389103096,-151.0,0.00055986,120]
[343162913,1732389103106,-500.0,0.00055986,120]
[343162914,1732389103115,-500.0,0.00055986,120]
[343162915,1732389103125,-402.89,0.00055986,120]
[343162916,1732389103135,-828.16,0.00055986,120]
[343162917,1732389103145,-828.16,0.00055986,120]
[343162918,1732389103155,-828.16,0.00055986,120]
[343162919,1732389103166,-828.16,0.00055986,120]
[343162920,1732389103176,-828.16,0.00055986,120]
[343162921,1732389103186,-828.32,0.00055986,120]
[343162922,1732389103196,-500.0,0.00055986,120]
[343162923,1732389103206,-548.82360481,0.00055986,120]
[343162924,1732389103217,-218.633121,0.00055986,110]
[343162925,1732389103226,-218.63312,0.00055986,110]
[343162926,1732389103236,-500.0,0.00055986,120]
[343162927,1732389103246,-500.0,0.00055986,120]
[343162928,1732389103256,-500.0,0.00055986,120]
[343162929,1732389103265,-500.0,0.00055986,120]
[343162930,1732389103275,-500.0,0.00055986,120]
[343162931,1732389103285,-500.0,0.00055986,120]
[343162932,1732389103294,-500.0,0.00055986,120]
[343162933,1732389103304,-500.0,0.00055986,120]
[343162934,1732389103314,-271.82,0.00055986,120]
[343162935,1732389103324,-656.31,0.00055986,120]
[343162936,1732389103335,-656.31,0.00055986,120]
[343162937,1732389103345,-656.31,0.00055986,120]
[343162938,1732389103355,-656.31,0.00055986,120]
[343162939,1732389103365,-656.31,0.00055986,120]
[343162940,1732389103375,-656.31,0.00055986,120]
[343162941,1732389103386,-656.31,0.00055986,120]
[343162942,1732389103396,-656.31,0.00055986,120]
[343162943,1732389103407,-656.31,0.00055986,120]
[343162944,1732389103419,-656.35265835,0.00055986,120]
[343162945,1732389103428,-500.0,0.00055986,120]
[343162946,1732389103438,-500.0,0.00055986,120]
[343162947,1732389103448,-500.0,0.00055986,120]
[343162948,1732389103458,-500.0,0.00055986,120]
[343162949,1732389103468,-500.0,0.00055986,120]
[343162950,1732389103478,-633.17,0.00055986,120]
[343162951,1732389103488,-500.0,0.00055986,120]
[343162952,1732389103497,-500.0,0.00055986,120]
[343162953,1732389103507,-293.87509425,0.00055986,120]
[343162954,1732389103517,-204.42,0.00055986,120]
[343162955,1732389103527,-577.44,0.00055986,120]
[343162956,1732389103536,-577.44,0.00055986,120]
[343162957,1732389103546,-577.44,0.00055986,120]
[343162958,1732389103556,-577.44,0.00055986,120]
[343162959,1732389103565,-577.44,0.00055986,120]
[343162960,1732389103576,-577.44,0.00055986,120]
[343162961,1732389103585,-577.44,0.00055986,120]
[343162962,1732389103595,-577.44,0.00055986,120]
[343162963,1732389103604,-577.44,0.00055986,120]
[343162964,1732389103614,-577.63,0.00055986,120]
[343162965,1732389103624,-500.0,0.00055986,120]
[343162966,1732389103633,-500.0,0.00055986,120]
[343162967,1732389103643,-500.0,0.00055986,120]
[343162968,1732389103653,-274.62,0.00055986,120]
[343162969,1732389103664,-609.3,0.00055986,120]
[343162970,1732389103673,-609.3,0.00055986,120]
[343162971,1732389103683,-609.3,0.00055986,120]
[343162972,1732389103695,-609.3,0.00055986,120]
[343162973,1732389103705,-609.3,0.00055986,120]
[343162974,1732389103715,-609.3,0.00055986,120]
[343162975,1732389103725,-609.3,0.00055986,120]
[343162976,1732389103735,-609.3,0.00055986,120]
[343162977,1732389103745,-609.3,0.00055986,120]
[343162978,1732389103754,-609.52,0.00055986,120]
[343162979,1732389103765,-500.0,0.00055986,120]
[343162980,1732389103775,-500.0,0.00055986,120]
[343162981,1732389103784,-500.0,0.00055986,120]
[343162982,1732389103794,-500.0,0.00055986,120]
[343162983,1732389103804,-500.0,0.00055986,120]
[343162984,1732389103814,-500.0,0.00055986,120]
[343162985,1732389103824,-221.98033662,0.00055986,120]
[343162986,1732389103833,-1324.03,0.00055986,120]
[343162987,1732389103843,-1324.03,0.00055986,120]
[343162988,1732389103852,-1324.03,0.00055986,120]
[343162989,1732389103861,-1324.03,0.00055986,120]
[343162990,1732389103870,-1200.79,0.00055986,120]
[343162991,1732389103880,-1324.03,0.00055986,120]
[343162992,1732389103889,-1200.79,0.00055986,120]
[343162993,1732389103898,-1324.03,0.00055986,120]
[343162994,1732389103907,-1324.03,0.00055986,120]
[343162995,1732389103917,-1200.79,0.00055986,120]
[343162996,1732389103927,-1324.03,0.00055986,120]
[343162997,1732389103936,-1200.79,0.00055986,120]
[343162998,1732389103945,-1324.03,0.00055986,120]
[343162999,1732389103955,-1200.79,0.00055986,120]
[343163000,1732389103964,-1200.79,0.00055986,120]
[343163001,1732389103973,-1324.2,0.00055986,120]
[343163002,1732389103983,-1200.79,0.00055986,120]
[343163003,1732389103997,-1200.79,0.00055986,120]
[343163004,1732389104007,-1200.79,0.00055986,120]
[343163005,1732389104016,-1200.80451312,0.00055986,120]
[343163006,1732389104027,-500.0,0.00055986,120]
[343163007,1732389104036,-546.92,0.00055986,120]
[343163008,1732389104046,-500.0,0.00055986,120]
[343163009,1732389104056,-500.0,0.00055986,120]
[343163010,1732389104066,-358.06,0.00055986,120]
[343163011,1732389104075,-771.94,0.00055986,120]
[343163012,1732389104085,-771.94,0.00055986,120]
[343163013,1732389104094,-771.94,0.00055986,120]
[343163014,1732389104104,-771.94,0.00055986,120]
[343163015,1732389104113,-771.94,0.00055986,120]
[343163016,1732389104122,-772.03697905,0.00055986,120]
[343163017,1732389104132,-1803.76,0.00055986,120]
[343163018,1732389104142,-1803.76,0.00055986,120]
[343163019,1732389104152,-1803.76,0.00055986,120]
[343163020,1732389104163,-1803.76,0.00055986,120]
[343163021,1732389104173,-1803.76,0.00055986,120]
[343163022,1732389104183,-1803.76,0.00055986,120]
[343163023,1732389104192,-1803.76,0.00055986,120]
[343163024,1732389104202,-1803.76,0.00055986,120]
[343163025,1732389104212,-1803.76,0.00055986,120]
[343163026,1732389104222,-1803.93,0.00055986,120]
[343163027,1732389104232,-1486.62,0.00055986,120]
[343163028,1732389104242,-1486.62,0.00055986,120]
[343163029,1732389104251,-1486.62,0.00055986,120]
[343163030,1732389104260,-1486.62,0.00055986,120]
[343163031,1732389104270,-1486.62,0.00055986,120]
[343163032,1732389104279,-1486.62,0.00055986,120]
[343163033,1732389104289,-1486.62,0.00055986,120]
[343163034,1732389104299,-1486.62,0.00055986,120]
[343163035,1732389104309,-1486.62,0.00055986,120]
[343163036,1732389104319,-1486.62,0.00055986,120]
[343163037,1732389104329,-1278.68,0.00055986,120]
[343163038,1732389104338,-1278.68,0.00055986,120]
[343163039,1732389104348,-1278.68,0.00055986,120]
[343163040,1732389104358,-1278.68,0.00055986,120]
[343163041,1732389104367,-1278.68,0.00055986,120]
[343163042,1732389104376,-1278.68,0.00055986,120]
[343163043,1732389104386,-1278.68,0.00055986,120]
[343163044,1732389104396,-1278.68,0.00055986,120]
[343163045,1732389104406,-1278.68,0.00055986,120]
[343163046,1732389104418,-1278.79,0.00055986,120]
[343163047,1732389104429,-1227.87,0.00055986,120]
[343163048,1732389104439,-1227.87,0.00055986,120]
[343163049,1732389104449,-1227.87,0.00055986,120]
[343163050,1732389104459,-1227.87,0.00055986,120]
[343163051,1732389104468,-1227.87,0.00055986,120]
[343163052,1732389104478,-1227.87,0.00055986,120]
[343163053,1732389104487,-1097.97,0.00055986,120]
[343163054,1732389104498,-1227.87,0.00055986,120]
[343163055,1732389104508,-1097.97,0.00055986,120]
[343163056,1732389104517,-1227.87,0.00055986,120]
[343163057,1732389104527,-1097.97,0.00055986,120]
[343163058,1732389104536,-1097.97,0.00055986,120]
[343163059,1732389104546,-1227.87,0.00055986,120]
[343163060,1732389104555,-1097.97,0.00055986,120]
[343163061,1732389104565,-1227.92,0.00055986,120]
[343163062,1732389104575,-1098.10464417,0.00055986,120]
[343163063,1732389104585,-1339.52,0.00055986,120]
[343163064,1732389104595,-1339.52,0.00055986,120]
[343163065,1732389104604,-1339.52,0.00055986,120]
[343163066,1732389104613,-1339.52,0.00055986,120]
[343163067,1732389104623,-1339.52,0.00055986,120]
[343163068,1732389104632,-1339.52,0.00055986,120]
[343163069,1732389104642,-1339.52,0.00055986,120]
[343163070,1732389104651,-1339.52,0.00055986,120]
[343163071,1732389104660,-1339.52,0.00055986,120]
[343163072,1732389104671,-1339.58,0.00055986,120]
[343163073,1732389104680,-500.0,0.00055986,120]
[343163074,1732389104690,-500.0,0.00055986,120]
[343163075,1732389104699,-500.0,0.00055986,120]
[343163076,1732389104708,-500.0,0.00055986,120]
[343163077,1732389104718,-462.44932874,0.00055986,120]
[343163078,1732389104728,-500.0,0.00055986,54]
[343163079,1732389104737,-482.92,0.00055986,54]
[343163080,1732389104747,-1360.17,0.00055986,120]
[343163081,1732389104756,-1360.17,0.00055986,120]
[343163082,1732389104766,-1360.17,0.00055986,120]
[343163083,1732389104775,-1360.17,0.00055986,120]
[343163084,1732389104785,-1360.17,0.00055986,120]
[343163085,1732389104794,-1360.17,0.00055986,120]
[343163086,1732389104804,-1360.17,0.00055986,120]
[343163087,1732389104813,-1360.17,0.00055986,120]
[343163088,1732389104823,-1360.17,0.00055986,120]
[343163089,1732389104832,-1360.36,0.00055986,120]
[343163090,1732389104842,-500.0,0.00055986,120]
[343163091,1732389104851,-500.0,0.00055986,120]
[343163092,1732389104861,-500.0,0.00055986,120]
[343163093,1732389104871,-257.15,0.00055986,120]
[343163094,1732389104880,-500.0,0.00055986,120]
[343163095,1732389104890,-500.0,0.00055986,120]
[343163096,1732389104900,-500.0,0.00055986,120]
[343163097,1732389104909,-543.05308328,0.00055986,120]
[343163098,1732389104920,-500.0,0.00055986,120]
[343163099,1732389104930,-500.0,0.00055986,120]
[343163100,1732389104939,-500.0,0.00055986,120]
[343163101,1732389104949,-500.0,0.00055986,120]
[343163102,1732389104959,-500.0,0.00055986,120]
[343163103,1732389104968,-500.0,0.00055986,120]
[343163104,1732389104978,-165.04,0.00055986,120]
[343163105,1732389104987,-762.84,0.00055986,120]
[343163106,1732389105000,-762.84,0.00055986,120]
[343163107,1732389105010,-762.84,0.00055986,120]
[343163108,1732389105019,-762.84,0.00055986,120]
[343163109,1732389105028,-762.84,0.00055986,120]
[343163110,1732389105038,-762.84,0.00055986,120]
[343163111,1732389105048,-762.84,0.00055986,120]
[343163112,1732389105058,-762.84,0.00055986,120]
[343163113,1732389105069,-762.84,0.00055986,120]
[343163114,1732389105079,-763.0,0.00055986,120]
[343163115,1732389105089,-1009.83,0.00055986,120]
[343163116,1732389105098,-1009.83,0.00055986,120]
[343163117,1732389105107,-1009.83,0.00055986,120]
[343163118,1732389105117,-1009.83,0.00055986,120]
[343163119,1732389105127,-1009.83,0.00055986,120]
[343163120,1732389105136,-1009.83,0.00055986,120]
[343163121,1732389105146,-1009.83,0.00055986,120]
[343163122,1732389105156,-1009.83,0.00055986,120]
[343163123,1732389105167,-1009.83,0.00055986,120]
[343163124,1732389105177,-1010.01,0.00055986,120]
[343163125,1732389105188,-500.0,0.00055986,120]
[343163126,1732389105199,-500.0,0.00055986,120]
[343163127,1732389105209,-500.0,0.00055986,120]
[343163128,1732389105219,-543.84,0.00055986,120]
[343163129,1732389105229,-500.0,0.00055986,120]
[343163130,1732389105239,-500.0,0.00055986,120]
[343163131,1732389105248,-500.0,0.00055986,120]
[343163132,1732389105258,-500.0,0.00055986,120]
[343163133,1732389105267,-201.38,0.00055986,120]
[343163134,1732389105277,-836.17,0.00055986,120]
[343163135,1732389105287,-836.17,0.00055986,120]
[343163136,1732389105297,-836.17,0.00055986,120]
[343163137,1732389105370,-836.17,0.00055986,120]
[343163138,1732389105380,-836.17,0.00055986,120]
[343163139,1732389105390,-836.17,0.00055986,120]
[343163140,1732389105399,-836.17,0.00055986,120]
[343163141,1732389105409,-836.17,0.00055986,120]
[343163142,1732389105420,-836.17,0.00055986,120]
[343163143,1732389105430,-836.23,0.00055986,120]
[343163144,1732389105441,-500.0,0.00055986,120]
[343163145,1732389105451,-500.0,0.00055986,120]
[343163146,1732389105461,-500.0,0.00055986,120]
[343163147,1732389105471,-500.0,0.00055986,120]
[343163148,1732389105481,-457.97514197,0.00055986,120]
[343163149,1732389105491,-1293.77,0.00055986,120]
[343163150,1732389105500,-1293.77,0.00055986,120]
[343163151,1732389105510,-1293.77,0.00055986,120]
[343163152,1732389105519,-1293.77,0.00055986,120]
[343163153,1732389105529,-1293.77,0.00055986,120]
[343163154,1732389105539,-1293.77,0.00055986,120]
[343163155,1732389105549,-1293.77,0.00055986,120]
[343163156,1732389105559,-1293.77,0.00055986,120]
[343163157,1732389105568,-1293.77,0.00055986,120]
[343163158,1732389105578,-1293.87469841,0.00055986,120]
[343163159,1732389105588,-500.0,0.00055986,30]
[343163160,1732389105597,-500.0,0.00055986,30]
[343163161,1732389105607,-500.0,0.00055986,30]
[343163162,1732389105616,-500.0,0.00055986,30]
[343163163,1732389105626,-575.91,0.00055986,120]
[343163164,1732389105635,-500.0,0.00055986,30]
[343163165,1732389105645,-629.77624183,0.00055986,30]
[343163166,1732389105654,-500.0,0.00055986,120]
[343163167,1732389105663,-473.71249073,0.00055986,120]
[343163168,1732389105672,-547.93912743,0.00055986,120]
[343163169,1732389105682,-100000.0,0.00055987,39]
[343163170,1732389105691,-1024324.11670099,0.00055987,120]
[343163171,1732389105701,-151.0,0.00055987,120]
[343163172,1732389105710,-216.775395,0.00055987,120]
[343163173,1732389105720,-151.0,0.00055987,120]
[343163174,1732389105730,-151.0,0.00055987,120]
[343163175,1732389105740,-151.0,0.00055987,120]
[343163176,1732389105750,-151.0,0.00055987,120]
[343163177,1732389105760,-151.0,0.00055987,120]
[343163178,1732389105769,-151.0,0.00055987,120]
[343163179,1732389105779,-180.379376,0.00055987,120]
[343163180,1732389105788,-151.0,0.00055987,120]
[343163181,1732389105798,-180.379376,0.00055987,120]
[343163182,1732389105808,-180.379376,0.00055987,120]
[343163183,1732389105818,-180.379376,0.00055987,120]
[343163184,1732389105827,-151.0,0.00055987,120]
[343163185,1732389105837,-152.234558,0.00055987,120]
[343163186,1732389105846,-215.882577,0.00055987,120]
[343163187,1732389105855,-224.0475,0.00055987,30]
[343163188,1732389105865,-224.0475,0.00055987,30]
[343163189,1732389105875,-224.0475,0.00055987,30]
[343163190,1732389105884,-224.0475,0.00055987,30]
[343163191,1732389105894,-151.0,0.00055987,120]
[343163192,1732389105903,-151.0,0.00055987,120]
[343163193,1732389105912,-151.0,0.00055987,120]
[343163194,1732389105922,-151.0,0.00055987,120]
[343163195,1732389105931,-151.0,0.00055987,120]
[343163196,1732389105941,-151.0,0.00055987,120]
[343163197,1732389105951,-151.0,0.00055987,120]
[343163198,1732389105960,-151.0,0.00055987,120]
[343163199,1732389105970,-467.445494,0.00055987,120]
[343163200,1732389105979,-467.445494,0.00055987,120]
[343163201,1732389105992,-151.0,0.00055987,120]
[343163202,1732389106003,-169.15571,0.00055987,120]
[343163203,1732389106012,-169.15571,0.00055987,120]
[343163204,1732389106022,-151.0,0.00055987,120]
[343163205,1732389106031,-151.0,0.00055987,120]
[343163206,1732389106042,-151.0,0.00055987,120]
[343163207,1732389106051,-240.625105,0.00055987,120]
[343163208,1732389106061,-240.625105,0.00055987,120]
[343163209,1732389106071,-240.625105,0.00055987,120]
[343163210,1732389106081,-240.625112,0.00055987,120]
[343163211,1732389106090,-151.0,0.00055987,120]
[343163212,1732389106100,-151.0,0.00055987,120]
[343163213,1732389106109,-59434.06781652,0.00055989,120]
[343163214,1732389106119,-151.0,0.00055989,120]
[343163215,1732389106129,-182.255336,0.00055989,120]
[343163216,1732389106139,-197.314853,0.00055989,120]
[343163217,1732389106148,-400.44156331,0.0005599,2]
[343163218,1732389106157,-240.26493799,0.0005599,2]
[343163219,1732389106167,-1000.0,0.0005599,120]
[343163220,1732389106177,-4560895.40855325,0.0005599,60]
[343163221,1732389106187,-1274123.67405766,0.0005599,60]
[343163222,1732389107015,-122300.97222612,0.0005599,60]
[343163223,1732389107026,-25116.03054961,0.0005599,60]
[343163224,1732389107222,-500.0,0.00054794,120]
[343163225,1732389107231,-729.99,0.00054794,120]
[343163226,1732389107240,-500.0,0.00054794,120]
[343163227,1732389107249,-3767.53,0.00054997,120]
[343163228,1732389107259,-20127.87963572,0.0005599,60]
[343163229,1732389107656,-1094.0,0.00051667,120]
[343163230,1732389107667,-307.0,0.0005426,7]
[343163231,1732389107676,-217.28320599,0.00054644,120]
[343163232,1732389107686,-158.787477,0.00054694,120]
[343163233,1732389107696,-151.0,0.00054694,120]
[343163234,1732389107705,-381.64900741,0.00054773,2]
[343163235,1732389107715,-500.0,0.00054794,120]
[343163236,1732389107724,-500.0,0.00054794,120]
[343163237,1732389107734,-729.99,0.00054794,120]
[343163238,1732389107743,-500.0,0.00054794,120]
[343163239,1732389107753,-500.0,0.00054794,120]
[343163240,1732389107762,-500.0,0.00054794,120]
[343163241,1732389107772,-500.0,0.00054794,120]
[343163242,1732389107781,-729.99,0.00054794,120]
[343163243,1732389107791,-500.0,0.00054794,120]
[343163244,1732389107800,-500.0,0.00054794,120]
[343163245,1732389107811,-729.99,0.00054794,120]
[343163246,1732389107820,-500.0,0.00054794,120]
[343163247,1732389107829,-500.0,0.00054794,120]
[343163248,1732389107839,-500.0,0.00054794,120]
[343163249,1732389107849,-589.75765849,0.00054794,120]
[343163250,1732389107858,-729.99,0.00054794,120]
[343163251,1732389107872,-151.0,0.00054794,120]
[343163252,1732389107882,-151.0,0.00054794,120]
[343163253,1732389107891,-151.0,0.00054794,120]
[343163254,1732389107901,-151.0,0.00054794,120]
[343163255,1732389107910,-151.0,0.00054794,120]
[343163256,1732389107921,-151.0,0.00054794,120]
[343163257,1732389107930,-151.0,0.00054794,120]
[343163258,1732389107940,-151.0,0.00054794,120]
[343163259,1732389107949,-151.0,0.00054794,120]
[343163260,1732389107958,-151.0,0.00054794,120]
[343163261,1732389107967,-500.0,0.00054794,120]
[343163262,1732389107977,-151.0,0.00054794,120]
[343163263,1732389107987,-500.0,0.00054794,120]
[343163264,1732389108000,-500.0,0.00054794,120]
[343163265,1732389108009,-151.0,0.00054794,120]
[343163266,1732389108018,-500.0,0.00054794,120]
[343163267,1732389108028,-500.0,0.00054794,120]
[343163268,1732389108037,-151.0,0.00054794,120]
[343163269,1732389108046,-500.0,0.00054794,120]
[343163270,1732389108055,-500.0,0.00054794,120]
[343163271,1732389108065,-500.0,0.00054794,120]
[343163272,1732389108076,-151.0,0.00054794,120]
[343163273,1732389108086,-500.0,0.00054794,120]
[343163274,1732389108096,-500.0,0.00054794,120]
[343163275,1732389108106,-47.2220156,0.00054794,120]
[343163276,1732389108358,-1094.0,0.00054667,120]
[343163277,1732389108367,-151.0,0.00054694,120]
[343163278,1732389108377,-289.77927953,0.00054794,120]
[343163279,1732389108387,-500.0,0.00054883,120]
[343163280,1732389108397,-500.0,0.00054883,120]
[343163281,1732389108407,-32371.3338847,0.00054884,62]
[343163282,1732389108416,-151.0,0.00054884,120]
[343163283,1732389108426,-729.99,0.00054998,120]
[343163284,1732389108435,-15835.17929757,0.00055341,2]
[343163285,1732389108445,-3767.53,0.00055478,120]
[343163286,1732389108455,-3767.53,0.00055478,120]
[343163287,1732389108464,-3767.53,0.00055478,120]
[343163288,1732389108474,-3767.53,0.00055478,120]
[343163289,1732389108483,-3767.53,0.00055478,120]
[343163290,1732389108493,-3767.53,0.00055478,120]
[343163291,1732389108502,-3767.53,0.00055478,120]
[343163292,1732389108512,-3767.65,0.00055478,120]
[343163293,1732389108521,-150.0,0.0005549,14]
[343163294,1732389108531,-150.0,0.00055529,14]
[343163295,1732389108541,-150.0,0.00055628,14]
[343163296,1732389108551,-150.0,0.00055653,14]
[343163297,1732389108561,-729.99,0.00055669,120]
[343163298,1732389108571,-729.99,0.00055769,120]
[343163299,1732389108581,-729.99,0.00055769,120]
[343163300,1732389108590,-729.99,0.00055769,120]
[343163301,1732389108601,-150.0,0.00055801,14]
[343163302,1732389108611,-150.0,0.00055825,14]
[343163303,1732389108621,-563.97659914,0.00055868,120]
[343163304,1732389108789,-151.0,0.00054794,120]
[343163305,1732389108800,-151.0,0.00054794,120]
[343163306,1732389108810,-151.0,0.00054794,120]
[343163307,1732389108819,-151.0,0.00054794,120]
[343163308,1732389108828,-194.0110708,0.00054883,120]
[343163309,1732389108847,-270.641094,0.00054794,120]
[343163310,1732389108854,-305.9889292,0.00054883,120]
[343163311,1732389108863,-500.0,0.00054997,120]
[343163312,1732389108873,-500.0,0.00055499,120]
[343163313,1732389108884,-500.0,0.00055737,120]
[343163314,1732389108895,-368.35066044,0.00055768,120]
[343163315,1732389108906,-166.01340086,0.00055868,120]
[343163316,1732389108917,-729.99,0.00055869,120]
[343163317,1732389108927,-150.0,0.00055879,14]
[343163318,1732389108938,-729.99,0.00055889,120]
[343163319,1732389108948,-150.0,0.00055936,14]
[343163320,1732389108958,-729.99,0.00055951,120]
[343163321,1732389108969,-729.99,0.00055951,120]
[343163322,1732389108979,-150.0,0.00055974,14]
[343163323,1732389108992,-729.99,0.00055985,120]
[343163324,1732389109003,-729.99,0.00055985,120]
[343163325,1732389109013,-729.99,0.00055985,120]
[343163326,1732389109022,-476388.28945779,0.0005599,60]
[343163327,1732389109035,-7323.25251859,0.0005599,60]
[343163328,1732389109262,-373.26408349,0.000411,2]
[343163329,1732389109273,-217.28320599,0.00054694,120]
[343163330,1732389109284,-502.29541422,0.00054794,120]
[343163331,1732389109295,-1272.11174775,0.0005589,2]
[343163332,1732389109309,-2304.73341321,0.0005589,2]
[343163333,1732389109329,-12258.33413661,0.0005589,2]
[343163334,1732389109340,-114.38430054,0.00055985,120]
[343163335,1732389109353,-615.60569946,0.00055985,120]
[343163336,1732389109364,-729.99,0.00055985,120]
[343163337,1732389109375,-9278.41878765,0.0005599,60]
[343163338,1732389109388,-4400.60913411,0.0005599,60]
[343163339,1732389109413,-147648.61127486,0.0005599,60]
[343163340,1732389109648,-7903.70653719,0.0005599,60]
[343163341,1732389109661,-3202.10061181,0.0005599,60]
[343163342,1732389109675,-669.20472455,0.0005599,60]
[343163344,1732389160921,250.0,0.00031,2]
[343163345,1732389162076,300.0,0.00033,2]
[343163346,1732389163204,150.0,0.00035,2]
[343163347,1732389163232,150.0,0.00035,2]
[343163348,1732389163266,50.0,0.00035,2]
[343163349,1732389164314,150.0,0.00037,2]
[343163350,1732389164338,150.0,0.00037,2]
[343163351,1732389164361,100.0,0.00037,2]
[343163352,1732389220664,50.0,0.00024932,2]
[343163353,1732389220686,292.12953976,0.00024932,2]
[343163354,1732389220708,157.87046024,0.00024932,2]
[343163355,1732389247844,207.0,0.0003,120]
[343163356,1732389260028,151.0,0.0003,120]
[343163357,1732389260601,151.0,0.00035452,120]
[343163359,1732389449833,176.47,0.00037324,2]
[343163360,1732389454436,289.1485,0.00036724,2]
[343163363,1732389592835,162.38,0.00024789,2]
[343163365,1732389639706,-151.0,0.00040904,120]
[343163366,1732389639979,500.0,0.00040904,120]
[343163367,1732389662557,-323.1603,0.00039888,7]
[343163368,1732389669925,185.17,0.00037141,30]
[343163369,1732389691464,-158.674,0.00037761,2]
[343163370,1732389691488,-248.84272232,0.000389,2]
[343163371,1732389691517,-450.0,0.00039,2]
[343163372,1732389691543,-248.84272232,0.0003925,2]
[343163373,1732389691566,-248.84272232,0.000396,2]
[343163374,1732389691592,-492.0,0.000397,2]
[343163375,1732389691618,-188.50599756,0.00039788,2]
[343163376,1732389691644,-188.50599756,0.00039899,2]
[343163377,1732389691671,-245.12078206,0.00039899,2]
[343163378,1732389691696,-1300.0,0.00039999,4]
[343163379,1732389691720,-749.0,0.00039999,4]
[343163380,1732389691745,-3852.0,0.0004,2]
[343163381,1732389691769,-1020.33475586,0.0004,2]
[343163382,1732389814249,500.0,0.00024932,2]
[343163384,1732389908266,699704.50717586,0.00013,2]
[343163385,1732389908655,81508.89486398,0.0001,2]
[343163386,1732389910426,3450.0,0.000154,2]
[343163387,1732389912086,742.12953976,0.00025,2]
[343163389,1732389919855,8417.62857845,9e-05,2]
[343163390,1732389925913,2365.10568443,0.00025,30]
[343163391,1732389943600,4330.46820284,0.00037,2]
[343163392,1732389951170,20999.99999802,9.99e-05,2]
[343163393,1732389954470,34071.57549502,6.94e-05,2]
[343163394,1732389966123,3210.29387405,0.0001,2]
[343163395,1732389977112,951.95804807,0.00025,2]
[343163396,1732389978027,7674.7187841,0.0003,14]
[343163397,1732389984085,253.8426507,0.00025,2]
[343163398,1732389987569,1985.35334829,0.0003499,2]
[343163399,1732389989011,1638.93411548,0.00015,2]
[343163400,1732389997710,15468.6781382,0.00011888,2]
[343163401,1732390018960,27406.68858694,0.00035,10]
[343163402,1732390050687,1402.89758428,0.00024,30]
[343163403,1732390063472,200.0,0.00034825,2]
[343163404,1732390076709,11006.59401493,0.0001,2]
[343163405,1732390084840,294.0,0.0003717,2]
[343163406,1732390085174,294.0,0.0003491,2]
[343163407,1732390086801,677.55735138,0.00023922,2]
[343163408,1732390088499,1482.88873478,0.00025,60]
[343163417,1732390112861,640.13262651,0.00025,120]
[343163418,1732390114608,2000.0,0.0003,14]
[343163419,1732390116192,356.47868869,0.0002736,120]